[Event "Titled Tuesday Blitz March 21 Early 2023"]
[White "Moroni, Luca Jr"]
[Black "Hayrapetyan, Hovik"]
[WhiteFideId "865834"]
[BlackFideId "13302639"]
[WhiteElo "2569"]
[BlackElo "2348"]
[Result "1/2-1/2"]
[Round "08"]
[TimeControl "180+2"]
[Date "2023.03.21"]
[WhiteClock "0:00:10"]
[BlackClock "0:00:08"]

1. d4 {[%clk 0:03:00]}  Nf6 {[%clk 0:02:59]} 2. Bf4 {[%clk 0:02:59]}  d5 {[%clk 0:02:58]} 3. e3 {[%clk 0:03:00]}  c5 {[%clk 0:02:58]} 4. dxc5 {[%clk 0:03:01]}  Nc6 {[%clk 0:02:58]} 5. Bb5 {[%clk 0:03:00]}  Qa5+ {[%clk 0:02:48]} 6. Nc3 {[%clk 0:03:00]}  a6 {[%clk 0:02:33]} 7. Bxc6+ {[%clk 0:02:59]}  bxc6 {[%clk 0:02:34]} 8. Qd4 {[%clk 0:02:59]}  Nd7 {[%clk 0:02:35]} 9. b4 {[%clk 0:02:59]}  Qd8 {[%clk 0:02:30]} 10. e4 {[%clk 0:02:46]}  e6 {[%clk 0:02:28]} 11. Nf3 {[%clk 0:02:43]}  a5 {[%clk 0:02:25]} 12. exd5 {[%clk 0:02:37]}  axb4 {[%clk 0:02:11]} 13. dxc6 {[%clk 0:02:25]}  bxc3 {[%clk 0:01:38]} 14. cxd7+ {[%clk 0:02:24]}  Qxd7 {[%clk 0:01:32]} 15. Qxc3 {[%clk 0:02:16]}  Qb5 {[%clk 0:01:32]} 16. Bd6 {[%clk 0:02:07]}  Bxd6 {[%clk 0:01:26]} 17. cxd6 {[%clk 0:02:07]}  Ba6 {[%clk 0:01:26]} 18. Kd2 {[%clk 0:01:53]}  O-O {[%clk 0:01:19]} 19. Rab1 {[%clk 0:01:16]}  Qe2+ {[%clk 0:01:15]} 20. Kc1 {[%clk 0:01:16]}  Qxf2 {[%clk 0:00:58]} 21. Qd2 {[%clk 0:01:11]}  Qc5 {[%clk 0:00:55]} 22. Rd1 {[%clk 0:01:08]}  Qa3+ {[%clk 0:00:51]} 23. Rb2 {[%clk 0:01:08]}  Rab8 {[%clk 0:00:50]} 24. Qd4 {[%clk 0:01:01]}  Rfd8 {[%clk 0:00:46]} 25. Kb1 {[%clk 0:00:46]}  Bc4 {[%clk 0:00:39]} 26. Ka1 {[%clk 0:00:37]}  Bd5 {[%clk 0:00:17]} 27. Ne5 {[%clk 0:00:35]}  Rxb2 {[%clk 0:00:12]} 28. Qxb2 {[%clk 0:00:34]}  Qa4 {[%clk 0:00:07]} 29. d7 {[%clk 0:00:22]}  f6 {[%clk 0:00:06]} 30. Nd3 {[%clk 0:00:21]}  Qxd7 {[%clk 0:00:04]} 31. Nb4 {[%clk 0:00:21]}  Rb8 {[%clk 0:00:03]} 32. Qc3 {[%clk 0:00:19]}  Qb5 {[%clk 0:00:02]} 33. Nxd5 {[%clk 0:00:16]}  exd5 {[%clk 0:00:03]} 34. Qb3 {[%clk 0:00:16]}  Qxb3 {[%clk 0:00:02]} 35. axb3 {[%clk 0:00:17]}  Rb5 {[%clk 0:00:02]} 36. Kb2 {[%clk 0:00:17]}  Kf7 {[%clk 0:00:02]} 37. Kc3 {[%clk 0:00:17]}  Ke6 {[%clk 0:00:03]} 38. Ra1 {[%clk 0:00:17]}  Ke5 {[%clk 0:00:02]} 39. Ra7 {[%clk 0:00:17]}  Rc5+ {[%clk 0:00:02]} 40. Kd2 {[%clk 0:00:15]}  g5 {[%clk 0:00:02]} 41. Rxh7 {[%clk 0:00:14]}  Ra5 {[%clk 0:00:03]} 42. Re7+ {[%clk 0:00:14]}  Kd6 {[%clk 0:00:02]} 43. Re2 {[%clk 0:00:14]}  Ra1 {[%clk 0:00:02]} 44. Kc3 {[%clk 0:00:14]}  g4 {[%clk 0:00:02]} 45. g3 {[%clk 0:00:12]}  f5 {[%clk 0:00:02]} 46. Rd2 {[%clk 0:00:13]}  Kc5 {[%clk 0:00:02]} 47. b4+ {[%clk 0:00:12]}  Kd6 {[%clk 0:00:03]} 48. Kd4 {[%clk 0:00:12]}  Re1 {[%clk 0:00:03]} 49. c3 {[%clk 0:00:12]}  Re4+ {[%clk 0:00:03]} 50. Kd3 {[%clk 0:00:13]}  f4 {[%clk 0:00:04]} 51. gxf4 {[%clk 0:00:12]}  Rxf4 {[%clk 0:00:05]} 52. Rg2 {[%clk 0:00:05]}  Kc6 {[%clk 0:00:06]} 53. Rg3 {[%clk 0:00:04]}  Kb5 {[%clk 0:00:06]} 54. h3 {[%clk 0:00:03]}  gxh3 {[%clk 0:00:06]} 55. Rxh3 {[%clk 0:00:04]}  Rg4 {[%clk 0:00:03]} 56. Rf3 {[%clk 0:00:03]}  Rh4 {[%clk 0:00:03]} 57. Rg3 {[%clk 0:00:04]}  Rf4 {[%clk 0:00:03]} 58. Rg5 {[%clk 0:00:04]}  Kc6 {[%clk 0:00:03]} 59. Kc2 {[%clk 0:00:04]}  Rc4 {[%clk 0:00:01]} 60. Kb3 {[%clk 0:00:03]}  Rh4 {[%clk 0:00:02]} 61. Rg2 {[%clk 0:00:02]}  Rh3 {[%clk 0:00:02]} 62. Rg4 {[%clk 0:00:03]}  Rd3 {[%clk 0:00:01]} 63. Rd4 {[%clk 0:00:03]}  Rh3 {[%clk 0:00:02]} 64. Kc2 {[%clk 0:00:03]}  Rg3 {[%clk 0:00:02]} 65. Rd3 {[%clk 0:00:03]}  Rg4 {[%clk 0:00:02]} 66. Rf3 {[%clk 0:00:02]}  Rg2+ {[%clk 0:00:02]} 67. Kd3 {[%clk 0:00:02]}  Rg4 {[%clk 0:00:03]} 68. Rf6+ {[%clk 0:00:02]}  Kc7 {[%clk 0:00:04]} 69. Rf5 {[%clk 0:00:01]}  Kd6 {[%clk 0:00:04]} 70. Rf6+ {[%clk 0:00:02]}  Kd7 {[%clk 0:00:04]} 71. Rh6 {[%clk 0:00:03]}  Kc7 {[%clk 0:00:05]} 72. Rh5 {[%clk 0:00:03]}  Kc6 {[%clk 0:00:05]} 73. Rh3 {[%clk 0:00:03]}  Rf4 {[%clk 0:00:05]} 74. Ke3 {[%clk 0:00:03]}  Rc4 {[%clk 0:00:05]} 75. Kd2 {[%clk 0:00:03]}  Rg4 {[%clk 0:00:06]} 76. Kc2 {[%clk 0:00:03]}  Kb5 {[%clk 0:00:06]} 77. Kb3 {[%clk 0:00:03]}  Kc6 {[%clk 0:00:04]} 78. Rh6+ {[%clk 0:00:03]}  Kc7 {[%clk 0:00:04]} 79. Rf6 {[%clk 0:00:03]}  Rg3 {[%clk 0:00:04]} 80. Rf4 {[%clk 0:00:03]}  Kc6 {[%clk 0:00:04]} 81. Rd4 {[%clk 0:00:04]}  Rh3 {[%clk 0:00:05]} 82. Rg4 {[%clk 0:00:04]}  Rf3 {[%clk 0:00:05]} 83. Rg6+ {[%clk 0:00:04]}  Kc7 {[%clk 0:00:05]} 84. b5 {[%clk 0:00:03]}  Rf4 {[%clk 0:00:04]} 85. Rc6+ {[%clk 0:00:02]}  Kd7 {[%clk 0:00:03]} 86. Rc5 {[%clk 0:00:01]}  Kd6 {[%clk 0:00:03]} 87. Rc6+ {[%clk 0:00:02]}  Kd7 {[%clk 0:00:04]} 88. Rh6 {[%clk 0:00:02]}  Kc7 {[%clk 0:00:04]} 89. Kc2 {[%clk 0:00:01]}  Rg4 {[%clk 0:00:04]} 90. Kd3 {[%clk 0:00:02]}  Rf4 {[%clk 0:00:04]} 91. Rc6+ {[%clk 0:00:02]}  Kd7 {[%clk 0:00:04]} 92. Kd2 {[%clk 0:00:03]}  Rg4 {[%clk 0:00:04]} 93. Kc2 {[%clk 0:00:03]}  Rh4 {[%clk 0:00:04]} 94. Kb3 {[%clk 0:00:04]}  Rg4 {[%clk 0:00:05]} 95. c4 {[%clk 0:00:04]}  dxc4+ {[%clk 0:00:05]} 96. Rxc4 {[%clk 0:00:05]}  Rxc4 {[%clk 0:00:05]} 97. Kxc4 {[%clk 0:00:06]}  Kc7 {[%clk 0:00:06]} 98. Kc5 {[%clk 0:00:07]}  Kb7 {[%clk 0:00:06]} 99. b6 {[%clk 0:00:08]}  Kb8 {[%clk 0:00:07]} 100. Kc6 {[%clk 0:00:08]}  Kc8 {[%clk 0:00:07]} 101. b7+ {[%clk 0:00:09]}  Kb8 {[%clk 0:00:08]} 102. Kb6 {[%clk 0:00:10]} 1/2-1/2


[Site "https://www.chess.com"]

[Event "Titled Tuesday Blitz March 21 Early 2023"]
[White "Fier, Alexandr"]
[Black "Durarbayli, Vasif"]
[WhiteFideId "2107139"]
[BlackFideId "13402935"]
[WhiteElo "2610"]
[BlackElo "2543"]
[Result "0-1"]
[Round "08"]
[TimeControl "180+2"]
[Date "2023.03.21"]
[WhiteClock "0:00:04"]
[BlackClock "0:00:08"]

1. d4 {[%clk 0:03:00]}  d5 {[%clk 0:02:58]} 2. c4 {[%clk 0:03:00]}  c6 {[%clk 0:02:59]} 3. Nf3 {[%clk 0:02:59]}  Nf6 {[%clk 0:02:59]} 4. Nc3 {[%clk 0:03:00]}  e6 {[%clk 0:02:59]} 5. Bg5 {[%clk 0:02:59]}  h6 {[%clk 0:02:59]} 6. Bh4 {[%clk 0:02:59]}  dxc4 {[%clk 0:02:59]} 7. e4 {[%clk 0:02:59]}  g5 {[%clk 0:03:00]} 8. Bg3 {[%clk 0:02:59]}  b5 {[%clk 0:03:00]} 9. Be2 {[%clk 0:02:57]}  Bb7 {[%clk 0:02:59]} 10. e5 {[%clk 0:02:58]}  Nd5 {[%clk 0:02:58]} 11. O-O {[%clk 0:02:58]}  Nd7 {[%clk 0:02:58]} 12. Nd2 {[%clk 0:02:58]}  Qb6 {[%clk 0:02:54]} 13. Nde4 {[%clk 0:02:56]}  O-O-O {[%clk 0:02:54]} 14. a4 {[%clk 0:02:55]}  a6 {[%clk 0:02:48]} 15. Bh5 {[%clk 0:02:47]}  c5 {[%clk 0:02:34]} 16. axb5 {[%clk 0:02:41]}  axb5 {[%clk 0:02:32]} 17. Bxf7 {[%clk 0:02:39]}  cxd4 {[%clk 0:02:29]} 18. Nxb5 {[%clk 0:02:21]}  Qxb5 {[%clk 0:02:26]} 19. Bxe6 {[%clk 0:02:21]}  Qc6 {[%clk 0:02:03]} 20. Bf5 {[%clk 0:02:12]}  Be7 {[%clk 0:01:33]} 21. Rc1 {[%clk 0:01:56]}  Rhf8 {[%clk 0:01:20]} 22. Bh3 {[%clk 0:01:44]}  Nb6 {[%clk 0:01:08]} 23. Nf6 {[%clk 0:01:36]}  Bxf6 {[%clk 0:00:56]} 24. exf6 {[%clk 0:01:37]}  Rxf6 {[%clk 0:00:47]} 25. Qxd4 {[%clk 0:01:35]}  h5 {[%clk 0:00:45]} 26. f3 {[%clk 0:01:31]}  h4 {[%clk 0:00:34]} 27. Bf2 {[%clk 0:01:30]}  Rf4 {[%clk 0:00:24]} 28. Qg7 {[%clk 0:01:27]}  Qf6 {[%clk 0:00:16]} 29. Qh7 {[%clk 0:01:04]}  Kb8 {[%clk 0:00:16]} 30. Rfd1 {[%clk 0:01:00]}  Rh8 {[%clk 0:00:13]} 31. Qc2 {[%clk 0:00:54]}  Ne5 {[%clk 0:00:13]} 32. Bc5 {[%clk 0:00:39]}  Nd5 {[%clk 0:00:10]} 33. Qa4 {[%clk 0:00:35]}  g4 {[%clk 0:00:10]} 34. Qa7+ {[%clk 0:00:32]}  Kc8 {[%clk 0:00:10]} 35. fxg4 {[%clk 0:00:20]}  Qc6 {[%clk 0:00:10]} 36. g5+ {[%clk 0:00:19]}  Ng4 {[%clk 0:00:09]} 37. Bd4 {[%clk 0:00:17]}  Re8 {[%clk 0:00:08]} 38. Re1 {[%clk 0:00:17]}  Rxe1+ {[%clk 0:00:07]} 39. Rxe1 {[%clk 0:00:18]}  Nc7 {[%clk 0:00:06]} 40. Be3 {[%clk 0:00:16]}  Re4 {[%clk 0:00:05]} 41. Bf2 {[%clk 0:00:14]}  Rxe1+ {[%clk 0:00:04]} 42. Bxe1 {[%clk 0:00:15]}  Qe4 {[%clk 0:00:05]} 43. Qa5 {[%clk 0:00:13]}  Kb8 {[%clk 0:00:04]} 44. Qd2 {[%clk 0:00:12]}  Ne6 {[%clk 0:00:03]} 45. Bf2 {[%clk 0:00:12]}  Nxf2 {[%clk 0:00:02]} 46. Qxf2 {[%clk 0:00:12]}  Nf4 {[%clk 0:00:03]} 47. Bg4 {[%clk 0:00:11]}  Nd3 {[%clk 0:00:02]} 48. Qf8+ {[%clk 0:00:11]}  Ka7 {[%clk 0:00:03]} 49. Qa3+ {[%clk 0:00:11]}  Kb8 {[%clk 0:00:03]} 50. Qf8+ {[%clk 0:00:11]}  Ka7 {[%clk 0:00:04]} 51. Qa3+ {[%clk 0:00:07]}  Kb6 {[%clk 0:00:05]} 52. Qd6+ {[%clk 0:00:08]}  Bc6 {[%clk 0:00:05]} 53. Qb8+ {[%clk 0:00:07]}  Kc5 {[%clk 0:00:06]} 54. Qa7+ {[%clk 0:00:07]}  Kd6 {[%clk 0:00:06]} 55. Qb8+ {[%clk 0:00:08]}  Kc5 {[%clk 0:00:07]} 56. Qa7+ {[%clk 0:00:08]}  Kb5 {[%clk 0:00:07]} 57. Qb8+ {[%clk 0:00:08]}  Ka4 {[%clk 0:00:08]} 58. Qa7+ {[%clk 0:00:08]}  Kb3 {[%clk 0:00:08]} 59. Qb6+ {[%clk 0:00:09]}  Kc2 {[%clk 0:00:08]} 60. Bf3 {[%clk 0:00:04]}  Qe1# {[%clk 0:00:08]} 0-1


[Site "https://www.chess.com"]

[Event "Titled Tuesday Blitz March 21 Early 2023"]
[White "Flores, Diego"]
[Black "Ibarra Jerez, Jose Carlos"]
[WhiteFideId "108049"]
[BlackFideId "2226332"]
[WhiteElo "2606"]
[BlackElo "2638"]
[Result "1-0"]
[Round "08"]
[TimeControl "180+2"]
[Date "2023.03.21"]
[WhiteClock "0:00:06"]
[BlackClock "0:00:01"]

1. c4 {[%clk 0:03:00]}  e5 {[%clk 0:02:59]} 2. Nc3 {[%clk 0:03:00]}  Nf6 {[%clk 0:03:00]} 3. Nf3 {[%clk 0:03:00]}  e4 {[%clk 0:03:00]} 4. Ng5 {[%clk 0:03:00]}  c6 {[%clk 0:03:00]} 5. Qa4 {[%clk 0:02:59]}  Qe7 {[%clk 0:02:58]} 6. Qc2 {[%clk 0:02:57]}  b5 {[%clk 0:02:51]} 7. cxb5 {[%clk 0:02:21]}  d5 {[%clk 0:02:51]} 8. d3 {[%clk 0:02:18]}  h6 {[%clk 0:02:45]} 9. Nh3 {[%clk 0:02:18]}  g5 {[%clk 0:01:51]} 10. e3 {[%clk 0:02:08]}  Bg7 {[%clk 0:01:30]} 11. dxe4 {[%clk 0:01:16]}  O-O {[%clk 0:01:17]} 12. exd5 {[%clk 0:01:01]}  cxd5 {[%clk 0:01:14]} 13. Be2 {[%clk 0:01:00]}  Bxh3 {[%clk 0:00:54]} 14. gxh3 {[%clk 0:00:59]}  Nbd7 {[%clk 0:00:55]} 15. Qf5 {[%clk 0:00:52]}  Rac8 {[%clk 0:00:50]} 16. O-O {[%clk 0:00:52]}  d4 {[%clk 0:00:45]} 17. Nd5 {[%clk 0:00:15]}  Nxd5 {[%clk 0:00:45]} 18. Qxd5 {[%clk 0:00:16]}  Rc2 {[%clk 0:00:33]} 19. Bd3 {[%clk 0:00:12]}  Nf6 {[%clk 0:00:20]} 20. Qf3 {[%clk 0:00:08]}  Rcc8 {[%clk 0:00:14]} 21. exd4 {[%clk 0:00:08]}  Rfd8 {[%clk 0:00:15]} 22. Be3 {[%clk 0:00:09]}  Qb4 {[%clk 0:00:13]} 23. Rac1 {[%clk 0:00:07]}  Qxb2 {[%clk 0:00:14]} 24. Rc6 {[%clk 0:00:06]}  Rxc6 {[%clk 0:00:04]} 25. bxc6 {[%clk 0:00:07]}  Qc3 {[%clk 0:00:04]} 26. Qf5 {[%clk 0:00:07]}  Qb2 {[%clk 0:00:03]} 27. c7 {[%clk 0:00:06]}  Rf8 {[%clk 0:00:01]} 28. c8=Q {[%clk 0:00:06]}  Qb6 {[%clk 0:00:01]} 29. Qc2 {[%clk 0:00:05]}  Qd6 {[%clk 0:00:01]} 30. Bc4 {[%clk 0:00:05]}  Rd8 {[%clk 0:00:01]} 31. Re1 {[%clk 0:00:06]}  Qb4 {[%clk 0:00:01]} 32. Qg6 {[%clk 0:00:06]}  Qxe1+ {[%clk 0:00:01]} 33. Kg2 {[%clk 0:00:06]} 1-0


[Site "https://www.chess.com"]

[Event "Titled Tuesday Blitz March 21 Early 2023"]
[White "Molina, Roberto Junio Brito"]
[Black "Chigaev, Maksim"]
[WhiteFideId "2109450"]
[BlackFideId "4108116"]
[WhiteElo "2376"]
[BlackElo "2547"]
[Result "0-1"]
[Round "08"]
[TimeControl "180+2"]
[Date "2023.03.21"]
[WhiteClock "0:00:01"]
[BlackClock "0:00:10"]

1. d4 {[%clk 0:03:00]}  Nf6 {[%clk 0:03:00]} 2. c4 {[%clk 0:03:00]}  e6 {[%clk 0:03:01]} 3. Nf3 {[%clk 0:03:00]}  d5 {[%clk 0:03:01]} 4. Nc3 {[%clk 0:03:00]}  c6 {[%clk 0:03:02]} 5. Bg5 {[%clk 0:03:00]}  h6 {[%clk 0:03:02]} 6. Bh4 {[%clk 0:02:59]}  dxc4 {[%clk 0:03:02]} 7. e4 {[%clk 0:02:59]}  g5 {[%clk 0:03:02]} 8. Bg3 {[%clk 0:02:58]}  b5 {[%clk 0:03:03]} 9. Be2 {[%clk 0:02:57]}  Bg7 {[%clk 0:03:01]} 10. O-O {[%clk 0:02:57]}  Bb7 {[%clk 0:02:53]} 11. Qc2 {[%clk 0:02:55]}  Nbd7 {[%clk 0:02:39]} 12. Rad1 {[%clk 0:02:54]}  O-O {[%clk 0:02:33]} 13. h4 {[%clk 0:02:48]}  g4 {[%clk 0:02:30]} 14. Ne5 {[%clk 0:02:47]}  h5 {[%clk 0:02:28]} 15. f4 {[%clk 0:02:45]}  Qe7 {[%clk 0:02:12]} 16. f5 {[%clk 0:02:40]}  exf5 {[%clk 0:02:03]} 17. Rxf5 {[%clk 0:02:38]}  b4 {[%clk 0:01:56]} 18. Na4 {[%clk 0:02:29]}  c5 {[%clk 0:01:57]} 19. d5 {[%clk 0:02:26]}  b3 {[%clk 0:01:33]} 20. Qxc4 {[%clk 0:02:16]}  bxa2 {[%clk 0:01:30]} 21. Qxa2 {[%clk 0:02:09]}  Nxe4 {[%clk 0:01:23]} 22. d6 {[%clk 0:02:07]}  Nxd6 {[%clk 0:01:17]} 23. Rg5 {[%clk 0:01:13]}  Rad8 {[%clk 0:01:11]} 24. Bd3 {[%clk 0:00:36]}  c4 {[%clk 0:00:56]} 25. Nxc4 {[%clk 0:00:33]}  Ne4 {[%clk 0:00:31]} 26. Bxe4 {[%clk 0:00:23]}  Qxe4 {[%clk 0:00:32]} 27. Rd2 {[%clk 0:00:24]}  Nf6 {[%clk 0:00:27]} 28. b3 {[%clk 0:00:21]}  Nh7 {[%clk 0:00:23]} 29. Rxh5 {[%clk 0:00:18]}  Qg6 {[%clk 0:00:14]} 30. Rb5 {[%clk 0:00:14]}  Bc6 {[%clk 0:00:14]} 31. Ra5 {[%clk 0:00:12]}  Rxd2 {[%clk 0:00:11]} 32. Qxd2 {[%clk 0:00:11]}  Qb1+ {[%clk 0:00:11]} 33. Kh2 {[%clk 0:00:10]}  Qxb3 {[%clk 0:00:12]} 34. Ne5 {[%clk 0:00:09]}  Bxa4 {[%clk 0:00:12]} 35. Nxg4 {[%clk 0:00:05]}  Bb5 {[%clk 0:00:12]} 36. Rxa7 {[%clk 0:00:03]}  Qe6 {[%clk 0:00:12]} 37. Qf4 {[%clk 0:00:03]}  Bd7 {[%clk 0:00:10]} 38. Ne3 {[%clk 0:00:02]}  Nf6 {[%clk 0:00:11]} 39. Qf3 {[%clk 0:00:01]}  Bc6 {[%clk 0:00:10]} 0-1


[Site "https://www.chess.com"]

[Event "Titled Tuesday Blitz March 21 Early 2023"]
[White "Shimanov, Aleksandr"]
[Black "Cherniaiev, Tykhon"]
[WhiteFideId "4198603"]
[BlackFideId "14182360"]
[WhiteElo "2631"]
[BlackElo "2450"]
[Result "1-0"]
[Round "08"]
[TimeControl "180+2"]
[Date "2023.03.21"]
[WhiteClock "0:00:31"]
[BlackClock "0:00:03"]

1. e4 {[%clk 0:02:55]}  e5 {[%clk 0:02:59]} 2. Nf3 {[%clk 0:02:54]}  Nc6 {[%clk 0:02:59]} 3. Nc3 {[%clk 0:02:54]}  Nf6 {[%clk 0:02:59]} 4. h3 {[%clk 0:02:54]}  Bb4 {[%clk 0:02:58]} 5. Nd5 {[%clk 0:02:53]}  Bc5 {[%clk 0:02:53]} 6. c3 {[%clk 0:02:52]}  Nxd5 {[%clk 0:02:26]} 7. exd5 {[%clk 0:02:51]}  Ne7 {[%clk 0:02:26]} 8. Nxe5 {[%clk 0:02:51]}  d6 {[%clk 0:02:26]} 9. Nf3 {[%clk 0:02:50]}  O-O {[%clk 0:02:24]} 10. d4 {[%clk 0:02:49]}  Bb6 {[%clk 0:02:24]} 11. c4 {[%clk 0:02:47]}  Re8 {[%clk 0:02:18]} 12. Be2 {[%clk 0:02:46]}  Nf5 {[%clk 0:02:17]} 13. b3 {[%clk 0:01:59]}  Qf6 {[%clk 0:02:13]} 14. Bb2 {[%clk 0:01:58]}  Ba5+ {[%clk 0:02:09]} 15. Kf1 {[%clk 0:01:58]}  Bb6 {[%clk 0:02:02]} 16. Qd2 {[%clk 0:01:55]}  a5 {[%clk 0:01:54]} 17. g3 {[%clk 0:01:39]}  Qg6 {[%clk 0:01:35]} 18. Kg2 {[%clk 0:01:27]}  Bd7 {[%clk 0:01:34]} 19. Rae1 {[%clk 0:01:27]}  Re3 {[%clk 0:00:47]} 20. Bd1 {[%clk 0:01:13]}  Rd3 {[%clk 0:00:28]} 21. Qf4 {[%clk 0:01:09]}  a4 {[%clk 0:00:21]} 22. Bc2 {[%clk 0:00:54]}  Rxf3 {[%clk 0:00:17]} 23. Kxf3 {[%clk 0:00:55]}  axb3 {[%clk 0:00:10]} 24. Bxb3 {[%clk 0:00:54]}  h5 {[%clk 0:00:08]} 25. Kg2 {[%clk 0:00:53]}  Ba4 {[%clk 0:00:05]} 26. Re2 {[%clk 0:00:51]}  Bxb3 {[%clk 0:00:05]} 27. axb3 {[%clk 0:00:52]}  Ra2 {[%clk 0:00:05]} 28. Rhe1 {[%clk 0:00:53]}  Kh7 {[%clk 0:00:06]} 29. Kh2 {[%clk 0:00:49]}  Ba5 {[%clk 0:00:05]} 30. Ra1 {[%clk 0:00:43]}  Rxb2 {[%clk 0:00:05]} 31. Rxb2 {[%clk 0:00:41]}  Bc3 {[%clk 0:00:05]} 32. Raa2 {[%clk 0:00:39]}  Nxd4 {[%clk 0:00:03]} 33. Re2 {[%clk 0:00:32]}  Qd3 {[%clk 0:00:01]} 34. Qe4+ {[%clk 0:00:31]}  Qxe4 {[%clk 0:00:01]} 35. Rxe4 {[%clk 0:00:32]}  Nf3+ {[%clk 0:00:01]} 36. Kg2 {[%clk 0:00:31]}  Nd2 {[%clk 0:00:02]} 37. Rxd2 {[%clk 0:00:30]}  Bxd2 {[%clk 0:00:02]} 38. Re7 {[%clk 0:00:30]}  Ba5 {[%clk 0:00:03]} 39. Rxf7 {[%clk 0:00:30]}  Kg6 {[%clk 0:00:03]} 40. Rf8 {[%clk 0:00:30]}  Bb6 {[%clk 0:00:03]} 41. f4 {[%clk 0:00:30]}  Bd4 {[%clk 0:00:03]} 42. g4 {[%clk 0:00:30]}  hxg4 {[%clk 0:00:03]} 43. hxg4 {[%clk 0:00:31]}  Bb6 {[%clk 0:00:04]} 44. Kf3 {[%clk 0:00:31]}  Ba5 {[%clk 0:00:04]} 45. g5 {[%clk 0:00:30]}  c6 {[%clk 0:00:02]} 46. Kg4 {[%clk 0:00:29]}  cxd5 {[%clk 0:00:02]} 47. f5+ {[%clk 0:00:29]}  Kh7 {[%clk 0:00:03]} 48. g6+ {[%clk 0:00:29]}  Kh6 {[%clk 0:00:04]} 49. Rg8 {[%clk 0:00:30]}  Bc3 {[%clk 0:00:03]} 50. Rh8# {[%clk 0:00:31]} 1-0


[Site "https://www.chess.com"]

[Event "Titled Tuesday Blitz March 21 Early 2023"]
[White "Kramnik, Vladimir"]
[Black "Skvortsov, Andrei"]
[WhiteFideId "4101588"]
[BlackFideId "24108600"]
[WhiteElo "2712"]
[BlackElo "2259"]
[Result "1-0"]
[Round "08"]
[TimeControl "180+2"]
[Date "2023.03.21"]
[WhiteClock "0:00:47"]
[BlackClock "0:00:04"]

1. e4 {[%clk 0:03:00]}  c5 {[%clk 0:02:58]} 2. Nf3 {[%clk 0:03:00]}  d6 {[%clk 0:02:58]} 3. d4 {[%clk 0:03:00]}  Nf6 {[%clk 0:02:59]} 4. Nc3 {[%clk 0:02:59]}  cxd4 {[%clk 0:03:00]} 5. Nxd4 {[%clk 0:02:59]}  g6 {[%clk 0:03:00]} 6. Be3 {[%clk 0:02:55]}  Bg7 {[%clk 0:03:01]} 7. f3 {[%clk 0:02:55]}  O-O {[%clk 0:03:01]} 8. Qd2 {[%clk 0:02:55]}  d5 {[%clk 0:03:02]} 9. e5 {[%clk 0:02:53]}  Ne8 {[%clk 0:03:03]} 10. f4 {[%clk 0:02:51]}  f6 {[%clk 0:03:03]} 11. exf6 {[%clk 0:02:34]}  Nxf6 {[%clk 0:03:04]} 12. O-O-O {[%clk 0:02:34]}  Ng4 {[%clk 0:03:03]} 13. Bg1 {[%clk 0:02:20]}  Rxf4 {[%clk 0:03:02]} 14. Nf3 {[%clk 0:02:03]}  Bh6 {[%clk 0:02:33]} 15. Kb1 {[%clk 0:01:59]}  Rxf3 {[%clk 0:02:25]} 16. Qxd5+ {[%clk 0:01:58]}  Qxd5 {[%clk 0:02:23]} 17. Nxd5 {[%clk 0:01:58]}  Rxf1 {[%clk 0:02:23]} 18. Nxe7+ {[%clk 0:01:43]}  Kf7 {[%clk 0:02:08]} 19. Rxf1+ {[%clk 0:01:43]}  Kxe7 {[%clk 0:02:08]} 20. Bc5+ {[%clk 0:01:44]}  Kd7 {[%clk 0:02:03]} 21. Rf7+ {[%clk 0:01:38]}  Kc6 {[%clk 0:02:02]} 22. Bd4 {[%clk 0:01:34]}  Be3 {[%clk 0:01:26]} 23. Bc3 {[%clk 0:01:33]}  Nd7 {[%clk 0:01:05]} 24. Re1 {[%clk 0:01:26]}  Bc5 {[%clk 0:00:54]} 25. h3 {[%clk 0:01:23]}  Ne3 {[%clk 0:00:48]} 26. Rxh7 {[%clk 0:01:16]}  a5 {[%clk 0:00:48]} 27. g4 {[%clk 0:01:12]}  Nb6 {[%clk 0:00:42]} 28. Rg7 {[%clk 0:01:09]}  Nbd5 {[%clk 0:00:42]} 29. Rxg6+ {[%clk 0:01:08]}  Kb5 {[%clk 0:00:36]} 30. Bd2 {[%clk 0:01:08]}  Nc4 {[%clk 0:00:37]} 31. a4+ {[%clk 0:01:06]}  Kxa4 {[%clk 0:00:37]} 32. b3+ {[%clk 0:01:07]}  Kb5 {[%clk 0:00:37]} 33. bxc4+ {[%clk 0:01:06]}  Kxc4 {[%clk 0:00:38]} 34. Re4+ {[%clk 0:01:00]}  Kb5 {[%clk 0:00:38]} 35. Re5 {[%clk 0:00:57]}  Kc4 {[%clk 0:00:26]} 36. Rgg5 {[%clk 0:00:56]}  Be7 {[%clk 0:00:05]} 37. Rh5 {[%clk 0:00:56]}  Nf6 {[%clk 0:00:05]} 38. Rh8 {[%clk 0:00:48]}  b6 {[%clk 0:00:04]} 39. Rxe7 {[%clk 0:00:47]} 1-0


[Site "https://www.chess.com"]

[Event "Titled Tuesday Blitz March 21 Early 2023"]
[White "Krysa, Leandro"]
[Black "Ter-Sahakyan, Samvel"]
[WhiteFideId "116807"]
[BlackFideId "13302531"]
[WhiteElo "2485"]
[BlackElo "2566"]
[Result "1-0"]
[Round "08"]
[TimeControl "180+2"]
[Date "2023.03.21"]
[WhiteClock "0:00:06"]
[BlackClock "0:00:01"]

1. e4 {[%clk 0:03:00]}  c5 {[%clk 0:02:59]} 2. Nf3 {[%clk 0:03:00]}  e6 {[%clk 0:03:00]} 3. d4 {[%clk 0:03:00]}  cxd4 {[%clk 0:03:00]} 4. Nxd4 {[%clk 0:03:01]}  Nf6 {[%clk 0:03:01]} 5. Nc3 {[%clk 0:03:00]}  Nc6 {[%clk 0:03:02]} 6. a3 {[%clk 0:02:58]}  d6 {[%clk 0:02:58]} 7. Be2 {[%clk 0:02:53]}  Be7 {[%clk 0:02:58]} 8. Be3 {[%clk 0:02:52]}  O-O {[%clk 0:02:58]} 9. f4 {[%clk 0:02:42]}  Bd7 {[%clk 0:02:53]} 10. Ndb5 {[%clk 0:02:35]}  Qb8 {[%clk 0:02:53]} 11. Qd2 {[%clk 0:02:35]}  a6 {[%clk 0:02:51]} 12. Nd4 {[%clk 0:02:35]}  b5 {[%clk 0:02:51]} 13. O-O {[%clk 0:02:31]}  Rc8 {[%clk 0:02:48]} 14. Rad1 {[%clk 0:02:27]}  Qc7 {[%clk 0:02:42]} 15. Kh1 {[%clk 0:02:24]}  Rab8 {[%clk 0:02:41]} 16. Bd3 {[%clk 0:01:55]}  Nxd4 {[%clk 0:02:39]} 17. Bxd4 {[%clk 0:01:54]}  e5 {[%clk 0:02:40]} 18. Be3 {[%clk 0:01:46]}  exf4 {[%clk 0:02:36]} 19. Bxf4 {[%clk 0:01:44]}  Be6 {[%clk 0:02:35]} 20. Bg5 {[%clk 0:01:36]}  Ng4 {[%clk 0:02:32]} 21. Bxe7 {[%clk 0:01:22]}  Qxe7 {[%clk 0:02:32]} 22. Qf4 {[%clk 0:01:23]}  Ne5 {[%clk 0:02:24]} 23. Ne2 {[%clk 0:01:22]}  Bg4 {[%clk 0:02:17]} 24. Rd2 {[%clk 0:01:18]}  Bxe2 {[%clk 0:02:13]} 25. Bxe2 {[%clk 0:01:15]}  a5 {[%clk 0:02:03]} 26. Rfd1 {[%clk 0:01:14]}  Rc6 {[%clk 0:02:03]} 27. c3 {[%clk 0:01:12]}  g6 {[%clk 0:02:01]} 28. h3 {[%clk 0:01:12]}  Rbb6 {[%clk 0:01:46]} 29. Rd5 {[%clk 0:01:10]}  Rc5 {[%clk 0:01:47]} 30. Rxc5 {[%clk 0:01:04]}  dxc5 {[%clk 0:01:46]} 31. Rd5 {[%clk 0:01:04]}  f6 {[%clk 0:01:36]} 32. Qe3 {[%clk 0:01:01]}  Nd7 {[%clk 0:01:07]} 33. b4 {[%clk 0:01:00]}  axb4 {[%clk 0:01:06]} 34. axb4 {[%clk 0:00:58]}  Re6 {[%clk 0:01:01]} 35. Bxb5 {[%clk 0:00:28]}  Rxe4 {[%clk 0:00:57]} 36. Qd2 {[%clk 0:00:27]}  Ne5 {[%clk 0:00:45]} 37. bxc5 {[%clk 0:00:23]}  Kg7 {[%clk 0:00:29]} 38. c6 {[%clk 0:00:23]}  Qc7 {[%clk 0:00:22]} 39. Rd7+ {[%clk 0:00:14]}  Nxd7 {[%clk 0:00:22]} 40. cxd7 {[%clk 0:00:15]}  Qd8 {[%clk 0:00:08]} 41. c4 {[%clk 0:00:12]}  Re5 {[%clk 0:00:07]} 42. Qd6 {[%clk 0:00:09]}  Kf7 {[%clk 0:00:02]} 43. c5 {[%clk 0:00:09]}  Kg7 {[%clk 0:00:01]} 44. c6 {[%clk 0:00:08]}  Qb6 {[%clk 0:00:01]} 45. Qd1 {[%clk 0:00:06]} 1-0


[Site "https://www.chess.com"]